bitfinex/quotes_ETHUSD_20241223
["timestamp","ask_amount","ask_price","bid_price","bid_amount"]
[1734914106301,3.0712,3256.1,3255.4,1.5605]
[1734914106502,3.47955766,3256.0,3255.4,1.5605]
[1734914106692,3.07156,3255.7,3255.4,1.5605]
[1734914107827,3.07166,3255.6,3255.4,1.5605]
[1734914108321,3.07134,3255.9,3255.4,1.5605]
[1734914108547,3.07134,3255.9,3255.0,540.12333475]
[1734914108729,3.07125,3256.1,3255.0,540.12333475]
[1734914108730,3.07187,3255.4,3255.0,540.12333475]
[1734914108944,3.47955766,3255.1,3255.0,538.47083475]
[1734914109090,6.47955766,3255.1,3255.0,538.47083475]
[1734914111290,6.47955766,3255.1,3255.0,530.79033475]
[1734914111490,8.61252882,3255.1,3255.0,527.71813475]
[1734914111727,8.61252882,3255.1,3255.0,526.18203475]
[1734914112499,6.47955766,3255.1,3255.0,526.18203475]
[1734914112831,3.47955766,3255.1,3255.0,526.18203475]
[1734914113018,3.47955766,3255.1,3255.0,524.64593475]
[1734914113207,5.13195766,3255.1,3255.0,512.80176224]
[1734914113611,5.13195766,3255.1,3255.0,506.65736224]
[1734914114203,8.13195766,3255.1,3255.0,506.65736224]
[1734914114417,6.47955766,3255.1,3255.0,506.65736224]
[1734914114613,3.47955766,3255.1,3255.0,502.09773424]
[1734914116112,6.55165766,3255.1,3255.0,502.09773424]
[1734914117213,9.55165766,3255.1,3255.0,502.09773424]
[1734914117438,11.20785766,3255.1,3255.0,502.09773424]
[1734914117803,11.20785766,3255.1,3255.0,494.41723424]
[1734914117999,11.75785766,3255.1,3255.0,494.41723424]
[1734914118625,11.75785766,3255.1,3255.0,489.80893424]
[1734914119149,15.23741532,3255.1,3255.0,489.80893424]
[1734914119451,15.48741532,3255.1,3255.0,489.80893424]
[1734914119620,15.48741532,3255.1,3255.0,485.20063424]
[1734914120023,15.23741532,3255.1,3255.0,485.20063424]
[1734914120208,11.75785766,3255.1,3255.0,485.20063424]
[1734914120916,6.55165766,3255.1,3255.0,485.20063424]
[1734914121432,3.47955766,3255.1,3255.0,479.49948286]
[1734914121648,3.7966825,3255.1,3255.0,479.49948286]
[1734914121815,0.31712484,3255.1,3255.0,482.53281923]
[1734914122163,0.31712484,3255.1,3255.0,484.09551923]
[1734914122316,1.87834465,3255.2,3255.0,484.09551923]
[1734914122515,3.47955766,3255.5,3255.0,484.09551923]
[1734914122944,3.47955766,3255.5,3255.0,481.06218286]
[1734914123315,3.47955766,3255.5,3255.1,1.5418]
[1734914123521,3.47955766,3255.9,3255.1,1.5418]
[1734914124120,3.47955766,3256.3,3255.1,1.5418]
[1734914124324,3.07123,3256.1,3255.1,1.5418]
[1734914124847,3.0,3256.0,3255.1,1.5418]
[1734914125035,6.07095,3256.4,3255.2,1.5821]
[1734914125252,0.31709855,3256.3,3255.2,1.5821]
[1734914125535,3.0704,3256.9,3255.2,1.5821]
[1734914125712,0.31718697,3256.9,3255.2,1.5821]
[1734914125914,3.0707,3256.6,3255.4,1.5821]
[1734914126115,0.31718697,3256.9,3255.4,1.5821]
[1734914126418,3.07074,3256.6,3255.4,1.5821]
[1734914126765,3.0,3256.4,3255.4,1.5821]
[1734914127436,3.07151,3255.8,3255.1,1.5763]
[1734914128319,3.07163,3255.6,3255.1,1.5763]
[1734914129426,3.0,3256.4,3255.1,1.5763]
[1734914129620,3.07097,3256.3,3255.1,1.5763]
[1734914129956,3.07156,3255.7,3255.1,1.5763]
[1734914130156,1.5605,3255.8,3255.0,479.49948286]
[1734914130380,3.0721,3255.1,3255.0,479.49948286]
[1734914130552,3.0,3255.4,3255.0,479.49948286]
[1734914130553,6.0719,3255.4,3255.0,479.49948286]
[1734914130862,3.0721,3255.1,3255.0,479.49948286]
[1734914131358,6.0721,3255.1,3255.0,479.49948286]
[1734914131563,3.0,3255.4,3255.0,479.49948286]
[1734914131858,3.0,3255.7,3255.1,1.6301]
[1734914132368,3.0,3255.9,3255.1,1.6301]
[1734914132558,1.94962024,3256.2,3255.1,3.83058817]
[1734914133126,3.0713,3256.0,3255.1,1.6301]
[1734914133320,4.02373859,3256.0,3255.1,1.6301]
[1734914133524,3.07182,3255.4,3255.1,1.6301]
[1734914133748,1.621,3256.1,3255.0,479.49948286]
[1734914133749,3.0721,3255.1,3255.0,479.49948286]
[1734914133937,6.0721,3255.1,3255.0,479.49948286]
[1734914134935,3.0,3255.2,3255.0,479.49948286]
[1734914135142,6.07201,3255.2,3255.0,479.49948286]
[1734914135463,0.31733083,3255.3,3255.0,479.49948286]
[1734914135664,6.0721,3255.1,3255.0,479.49948286]
[1734914135844,7.7024,3255.1,3255.0,479.49948286]
[1734914137464,0.31733083,3255.3,3255.0,479.49948286]
[1734914137969,3.0721,3255.1,3255.0,479.49948286]
[1734914138465,4.6974,3255.1,3255.0,479.49948286]
[1734914138889,7.6974,3255.1,3255.0,479.49948286]
[1734914139487,6.0721,3255.1,3255.0,479.49948286]
[1734914140455,3.0,3255.1,3255.0,479.49948286]
[1734914140659,6.0721,3255.1,3255.0,479.49948286]
[1734914140892,6.0721,3255.1,3255.0,473.35508286]
[1734914141094,6.0721,3255.1,3255.0,471.81898286]
[1734914141095,7.7031,3255.1,3255.0,471.81898286]
[1734914141396,7.9531,3255.1,3255.0,471.81898286]
[1734914141602,7.9531,3255.1,3255.0,464.13848286]
[1734914141761,8.2531,3255.1,3255.0,464.13848286]
[1734914141962,8.5031,3255.1,3255.0,464.13848286]
[1734914142380,9.73349,3255.1,3255.0,464.13848286]
[1734914142568,9.48349,3255.1,3255.0,459.53018286]
[1734914142801,9.48349,3255.1,3255.0,456.45798286]
[1734914143292,10.73174876,3255.1,3255.0,450.75765453]
[1734914144596,11.08624471,3255.1,3255.0,450.75765453]
[1734914144760,11.08624471,3255.1,3255.0,446.19719476]
[1734914145292,7.67485471,3255.1,3255.0,446.19719476]
[1734914145719,6.0721,3255.1,3255.0,446.19719476]
[1734914146287,9.55897563,3255.1,3255.0,446.19719476]
[1734914146595,6.48687563,3255.1,3255.0,446.19719476]
[1734914146802,3.48687563,3255.1,3255.0,446.19719476]
[1734914148008,9.55897563,3255.1,3255.0,446.19719476]
[1734914149277,11.62907563,3255.1,3255.0,446.19719476]
[1734914149478,11.62907563,3255.1,3255.0,435.44449476]
[1734914149782,11.87907563,3255.1,3255.0,433.90839476]
[1734914150319,22.92780515,3255.1,3255.0,433.90839476]
[1734914150517,22.92780515,3255.1,3255.0,429.30009476]
[1734914150741,37.06812015,3255.1,3255.0,426.33236476]
[1734914150891,32.62320415,3255.1,3255.0,423.12476404]
[1734914151083,32.38868795,3255.1,3255.0,409.42367829]
[1734914151285,32.38868795,3255.1,3255.0,408.1875576]
[1734914151486,32.38868795,3255.1,3255.0,403.5792576]
[1734914151686,36.47940545,3255.1,3255.0,401.8474977]
[1734914151909,36.47940545,3255.1,3255.0,393.08814115]
[1734914152232,27.04387645,3255.1,3255.0,389.97146911]
[1734914152457,28.91444827,3255.1,3255.0,377.2347138]
[1734914152599,28.07785824,3255.1,3255.0,364.14939275]
[1734914152920,28.07785824,3255.1,3255.0,336.58939275]
[1734914152921,78.01462574,3255.1,3255.0,336.58939275]
[1734914153123,60.54692481,3255.1,3255.0,333.91939275]
[1734914153323,58.57909197,3255.1,3255.0,325.36603442]
[1734914153622,56.97118482,3255.1,3255.0,318.63773442]
[1734914153799,55.03556563,3255.1,3255.0,318.63773442]
[1734914154122,54.99629807,3255.1,3255.0,318.63773442]
[1734914154347,56.56492114,3255.1,3255.0,315.84449501]
[1734914154546,56.60413476,3255.1,3255.0,315.84449501]
[1734914154691,56.56492114,3255.1,3255.0,311.23619501]
[1734914155386,54.99629807,3255.1,3255.0,311.23619501]
[1734914155728,55.035015,3255.1,3255.0,306.62789501]
[1734914156052,59.80665952,3255.1,3255.0,292.36945925]
[1734914156685,56.60363807,3255.1,3255.0,287.76115925]
[1734914157091,56.60363807,3255.1,3255.0,283.19894372]
[1734914157514,56.60363807,3255.1,3255.0,281.66284372]
[1734914157697,56.60363807,3255.1,3255.0,280.12674372]
[1734914157903,56.60363807,3255.1,3255.0,278.59064372]
[1734914158621,56.60363807,3255.1,3255.0,273.98234372]
[1734914158928,56.90558682,3255.1,3255.0,273.98234372]
[1734914159123,56.90558682,3255.1,3255.0,260.33481964]
[1734914159323,56.90558682,3255.1,3255.0,251.28853351]
[1734914159541,52.33696375,3255.1,3255.0,202.16023351]
[1734914159751,51.485015,3255.1,3255.0,194.33688349]
[1734914159982,48.246015,3255.1,3255.0,194.33688349]
[1734914160095,17.19824223,3255.1,3255.0,190.09688349]
[1734914160448,17.1595253,3255.1,3255.0,190.09688349]
[1734914160741,19.10656527,3255.1,3255.0,185.48858349]
[1734914160913,28.97000654,3255.1,3255.0,185.48858349]
[1734914161321,29.52000654,3255.1,3255.0,185.48858349]
[1734914161518,33.98377126,3255.1,3255.0,182.41638349]
[1734914161694,34.35892264,3255.1,3255.0,180.88028349]
[1734914162025,34.39515035,3255.1,3255.0,180.88028349]
[1734914162329,24.27725577,3255.1,3255.0,180.88028349]
[1734914162628,6.81725313,3255.1,3255.0,174.54005754]
[1734914162793,9.89455866,3255.1,3255.0,174.54005754]
[1734914162996,9.05796863,3255.1,3255.0,174.54005754]
[1734914163406,14.77243526,3255.1,3255.0,174.54005754]
[1734914163630,20.17184602,3255.1,3255.0,169.93175754]
[1734914163932,20.13626686,3255.1,3255.0,169.93175754]
[1734914164121,23.13626686,3255.1,3255.0,169.93175754]
[1734914164301,23.68626686,3255.1,3255.0,169.93175754]
[1734914164634,32.99193302,3255.1,3255.0,165.32345754]
[1734914165051,24.55843605,3255.1,3255.0,165.32345754]
[1734914165201,11.05831951,3255.1,3255.0,165.32345754]
[1734914165537,6.55897563,3255.1,3255.0,165.32345754]
[1734914165995,20.25210026,3255.1,3255.0,159.17905754]
[1734914166197,21.79478581,3255.1,3255.0,159.17905754]
[1734914166391,22.2065982,3255.1,3255.0,159.17905754]
[1734914166698,16.20009881,3255.1,3255.0,154.57075754]
[1734914166894,17.25328581,3255.1,3255.0,154.57075754]
[1734914167104,14.01428581,3255.1,3255.0,154.57075754]
[1734914167303,19.18023881,3255.1,3255.0,154.57075754]
[1734914167524,19.21493259,3255.1,3255.0,149.96245754]
[1734914167835,13.63054504,3255.1,3255.0,149.96245754]
[1734914168036,18.47980426,3255.1,3255.0,149.96245754]
[1734914168334,13.63054504,3255.1,3255.0,149.96245754]
[1734914168539,17.49826517,3255.1,3255.0,149.96245754]
[1734914168744,22.98161839,3255.1,3255.0,139.65238798]
[1734914169140,19.36179239,3255.1,3255.0,139.65238798]
[1734914169522,15.60446936,3255.1,3255.0,135.04408798]
[1734914169723,15.60446936,3255.1,3255.0,131.97188798]
[1734914169924,9.11759373,3255.1,3255.0,131.97188798]
[1734914170236,7.35686976,3255.1,3255.0,131.97188798]
[1734914171041,10.47169667,3255.1,3255.0,131.97188798]
[1734914171237,17.5085723,3255.1,3255.0,124.29138798]
[1734914171615,17.5085723,3255.1,3255.0,119.68308798]
[1734914171817,17.7585723,3255.1,3255.0,118.14698798]
[1734914172028,15.28834014,3255.1,3255.0,118.14698798]
[1734914172436,14.48834014,3255.1,3255.0,118.14698798]
[1734914173242,8.00146451,3255.1,3255.0,118.14698798]
[1734914173422,7.96685371,3255.1,3255.0,118.14698798]
[1734914173823,7.35686976,3255.1,3255.0,118.14698798]
[1734914174233,7.35686976,3255.1,3255.0,115.07478798]
[1734914174439,14.04555239,3255.1,3255.0,112.00258798]
[1734914174616,10.87836611,3255.1,3255.0,104.32208798]
[1734914174815,13.84374539,3255.1,3255.0,104.32208798]
[1734914175138,16.93674497,3255.1,3255.0,104.32208798]
[1734914175943,20.17574497,3255.1,3255.0,98.17768798]
[1734914176316,19.91119711,3255.1,3255.0,98.17768798]
[1734914176520,20.99144405,3255.1,3255.0,87.86789679]
[1734914177230,20.99144405,3255.1,3255.0,79.31489191]
[1734914177645,20.74144405,3255.1,3255.0,74.70659191]
[1734914178154,22.3125267,3255.1,3255.0,74.70659191]
[1734914178648,16.41126115,3255.1,3255.0,71.63439191]
[1734914178810,23.83968515,3255.1,3255.0,71.63439191]
[1734914179016,19.10733315,3255.1,3255.0,67.02609191]
[1734914179216,18.61919315,3255.1,3255.0,67.02609191]
[1734914179583,17.66736611,3255.1,3255.0,65.48999191]
[1734914181033,17.66736611,3255.1,3255.0,60.88169191]
[1734914181034,20.00811311,3255.1,3255.0,60.88169191]
[1734914181239,21.34884911,3255.1,3255.0,60.88169191]
[1734914181617,14.42836611,3255.1,3255.0,60.88169191]
[1734914181826,10.87836611,3255.1,3255.0,60.88169191]
[1734914182222,7.39149048,3255.1,3255.0,60.88169191]
[1734914182478,0.83251485,3255.1,3255.0,60.88169191]
[1734914182693,5.23127702,3255.1,3255.0,65.56912828]
[1734914182897,6.57075301,3255.1,3255.0,65.56912828]
[1734914183081,5.1780608,3255.4,3255.0,65.56912828]
[1734914183082,5.1780608,3255.4,3255.0,63.91502828]
[1734914183278,3.5114608,3255.4,3255.1,1.6193]
[1734914183478,0.1782608,3255.4,3255.2,3.28333637]
[1734914183838,0.1782608,3255.4,3255.2,3.03333637]
[1734914184261,0.1782608,3255.4,3255.3,0.216]
[1734914184463,3.48687563,3255.9,3255.3,0.216]
[1734914184464,1.8897127,3255.6,3255.3,0.216]
[1734914185990,3.48687563,3256.3,3255.7,0.25]
[1734914186311,2.51961694,3257.0,3256.3,0.2194]
[1734914187459,1.229381,3257.3,3256.3,0.2194]
[1734914187788,2.51961694,3258.0,3255.6,9.52735004]
[1734914187789,2.51961694,3258.0,3256.7,0.2194]
[1734914188146,2.51961694,3258.0,3256.8,0.2194]
[1734914188442,3.31703908,3258.0,3256.8,0.2194]
[1734914188646,1.229151,3257.8,3256.8,0.2194]
[1734914189080,3.0,3257.5,3256.8,0.2194]
[1734914189713,3.0,3257.5,3256.5,0.25]
[1734914189914,3.0,3257.5,3256.6,0.2194]
[1734914190204,3.0,3257.5,3256.9,0.2194]
[1734914190408,0.03123633,3257.4,3256.9,0.2194]
[1734914190615,0.03123633,3257.4,3257.1,0.2194]
[1734914190820,0.31723224,3258.4,3257.5,0.25]
[1734914191126,3.48687563,3258.9,3257.7,0.25]
[1734914191387,3.48687563,3258.5,3257.6,0.25]
[1734914191780,3.48687563,3258.5,3257.7,0.1882]
[1734914192169,1.22881,3258.7,3257.7,0.1882]
[1734914193356,0.317195,3259.2,3258.2,0.1882]
[1734914193557,4.01823422,3259.5,3258.4,0.1882]
[1734914193864,1.228502,3259.5,3258.9,0.25]
[1734914194068,4.01823422,3260.0,3259.0,0.1882]
[1734914195499,3.06765,3259.9,3259.0,0.1882]
[1734914195787,4.01823422,3259.5,3259.0,0.1882]
[1734914196194,3.0,3259.4,3259.0,0.1882]
[1734914197267,6.06833,3259.1,3257.6,0.1882]
[1734914197467,3.0,3258.8,3257.6,0.1882]
[1734914197782,3.0,3259.3,3258.3,0.1882]
[1734914197992,3.0,3259.3,3258.5,0.1882]
[1734914198498,0.03332508,3259.2,3258.5,0.1882]
[1734914199515,0.03332508,3259.2,3256.8,10.08863422]
[1734914199516,0.03332508,3259.2,3258.8,0.1882]
[1734914199723,0.03332508,3259.2,3258.9,0.25]
[1734914199926,4.01823422,3259.9,3258.9,0.25]
[1734914199927,4.01823422,3259.9,3259.0,0.1882]
[1734914200221,4.01823422,3259.9,3258.4,8.92238]
[1734914200222,4.01823422,3260.4,3259.3,0.1882]
[1734914200630,4.01823422,3260.4,3259.9,0.1882]
[1734914200766,0.03386149,3260.3,3259.9,0.1882]
[1734914200962,0.25,3260.8,3259.9,0.1882]
[1734914201292,0.03283218,3260.7,3259.9,0.1882]
[1734914202082,0.03283218,3260.7,3259.9,0.25]
[1734914202364,0.03283218,3260.7,3260.2,0.1882]
[1734914202558,4.49802862,3261.4,3260.2,0.1882]
[1734914202983,1.25973318,3261.3,3260.2,0.1882]
[1734914203576,4.25973318,3261.3,3260.2,0.1882]
[1734914204365,0.03185318,3261.3,3260.4,0.1882]
[1734914204594,0.03185318,3261.3,3260.6,0.1882]
[1734914204797,0.03185318,3261.3,3260.8,0.1882]
[1734914205005,0.03265026,3261.2,3261.0,0.1882]
[1734914205367,4.01823422,3261.9,3261.0,0.4382]
[1734914205566,4.01823422,3261.9,3261.1,0.1882]
[1734914205771,0.0327647,3261.8,3261.1,0.1882]
[1734914206168,7.08444422,3261.4,3261.1,0.1882]
[1734914206400,0.0329736,3261.3,3261.1,0.1882]
[1734914206606,0.614135,3261.8,3261.1,0.4382]
[1734914206816,0.614135,3261.8,3261.2,0.1882]
[1734914206969,0.03341979,3261.7,3261.2,0.1882]
[1734914207170,4.01823422,3262.4,3261.4,0.25]
[1734914207401,4.01823422,3262.4,3261.5,0.1882]
[1734914207615,0.03353419,3262.3,3261.5,0.1882]
[1734914207903,1.26097119,3262.3,3261.5,0.1882]
[1734914208496,4.26097119,3262.3,3261.5,0.1882]
[1734914209073,4.26097119,3262.3,3261.5,0.25]
[1734914209267,4.26097119,3262.3,3261.6,0.1882]
[1734914209474,4.26097119,3262.3,3261.8,0.1882]
[1734914209475,0.03353419,3262.3,3261.8,0.1882]
[1734914209673,4.01823422,3263.4,3262.0,0.1882]
[1734914209975,0.03400426,3263.3,3262.4,0.1882]
[1734914210176,0.03400426,3263.3,3262.6,0.1882]
[1734914210476,3.044932,3264.0,3262.6,0.1882]
[1734914210477,0.0330493,3263.2,3262.6,0.1882]
[1734914210698,4.01823422,3263.6,3262.7,0.25]
[1734914210891,0.03303025,3263.1,3262.8,0.1882]
[1734914211084,3.044932,3264.0,3263.4,0.1882]
[1734914211298,3.044932,3264.0,3263.5,0.25]
[1734914211508,3.044932,3264.0,3263.0,0.55]
[1734914211509,0.03201893,3263.9,3263.6,0.1882]
[1734914211685,0.03201893,3263.9,3263.1,0.1882]
[1734914211890,4.01823422,3263.4,3262.4,0.1882]
[1734914212175,3.06449,3263.2,3262.4,0.1882]
[1734914212482,3.09684997,3263.1,3262.4,0.1882]
[1734914212714,4.01823422,3262.9,3262.4,0.1882]
[1734914212914,3.0,3262.8,3262.4,0.1882]
[1734914213211,0.03214319,3262.8,3262.4,0.4382]
[1734914213710,3.0,3263.3,3262.4,0.1882]
[1734914213711,0.03305397,3262.7,3262.4,0.1882]
[1734914214175,4.01823422,3262.9,3262.4,0.1882]
[1734914214380,0.03298266,3262.6,3262.4,0.1882]
[1734914214669,0.03297676,3262.5,3262.4,0.1882]
[1734914214819,3.0,3262.8,3262.4,0.1882]
[1734914215012,0.03301488,3262.7,3262.4,0.1882]
[1734914215212,4.01823422,3263.4,3262.4,0.1882]
[1734914215421,4.01823422,3263.4,3262.4,0.4382]
[1734914215636,0.03312921,3263.3,3262.4,0.1882]
[1734914216265,4.01823422,3262.9,3262.4,0.1882]
[1734914216483,0.03310544,3262.8,3261.5,0.1882]
[1734914216639,3.03310544,3262.8,3261.5,0.1882]
[1734914217163,3.0,3262.2,3261.5,0.1882]
[1734914217320,3.0,3262.7,3261.6,0.25]
[1734914217521,0.03277409,3262.1,3261.6,0.25]
[1734914217726,3.0,3262.7,3261.6,0.25]
[1734914217944,0.03275502,3262.0,3261.6,0.25]
[1734914218159,3.0,3262.7,3261.6,0.25]
[1734914218339,3.0,3262.7,3261.5,0.1882]
[1734914218551,0.0328694,3262.6,3261.5,0.1882]
[1734914218871,0.0328694,3262.6,3261.5,0.4382]
[1734914219350,0.0328694,3262.6,3261.8,0.1882]
[1734914219953,3.06536,3262.3,3261.8,0.1882]
[1734914220173,3.0,3261.8,3260.7,0.4382]
[1734914220363,3.0,3261.6,3260.7,0.4382]
[1734914220549,3.0,3261.6,3260.7,0.1882]
[1734914220745,0.03221439,3261.5,3260.7,0.4382]
[1734914220951,0.03221439,3261.5,3261.0,0.1882]
[1734914221188,0.03221439,3261.5,3261.1,0.25]
[1734914221351,3.0,3262.1,3261.0,0.1882]
[1734914221548,0.03224143,3261.4,3261.0,0.1882]
[1734914221754,4.01823422,3261.7,3261.0,0.1882]
[1734914221991,3.0,3261.6,3261.0,0.1882]
[1734914222282,3.03185562,3261.6,3261.0,0.1882]
[1734914222853,0.03185562,3261.6,3261.0,0.25]
[1734914223182,3.0,3262.1,3261.1,0.1882]
[1734914223694,0.03180008,3262.0,3261.1,0.1882]
[1734914225017,0.03180008,3262.0,3261.7,0.1882]
[1734914225280,4.33860654,3263.2,3262.2,0.1882]
[1734914225483,0.03056013,3263.1,3262.2,0.1882]
[1734914227763,3.03056013,3263.1,3262.2,0.1882]
[1734914228698,3.03056013,3263.1,3261.8,8.92238]
[1734914228699,3.0,3262.6,3261.8,9.11058]
[1734914228863,3.0,3262.6,3261.8,0.1882]
[1734914229062,4.01823422,3262.2,3261.8,0.1882]
[1734914229393,3.03185003,3262.1,3261.8,0.1882]
[1734914229563,3.03185003,3262.1,3260.8,0.1882]
[1734914229761,3.03185003,3262.1,3260.8,0.4382]
[1734914229969,3.03185003,3262.1,3260.8,1.4049279]
[1734914230279,3.03185003,3262.1,3260.8,1.1549279]
[1734914230470,3.03185003,3262.1,3260.8,0.1882]
[1734914231271,6.09737003,3262.1,3260.8,0.1882]
[1734914231483,3.0,3261.6,3260.8,0.1882]
[1734914231678,0.03124212,3261.5,3260.8,0.1882]
[1734914232061,3.0,3262.1,3260.8,0.1882]
[1734914232378,0.03059225,3262.0,3260.9,0.1882]
[1734914232786,0.03059225,3262.0,3261.2,0.7382]
[1734914233190,3.0,3262.6,3261.2,0.7382]
[1734914233509,3.0,3262.6,3261.5,0.1882]
[1734914233731,0.03069354,3262.5,3261.6,0.7382]
[1734914233864,4.01823422,3262.7,3261.6,0.7382]
[1734914234067,0.0307126,3262.6,3261.8,0.55]
[1734914234264,4.01823422,3263.2,3262.0,0.55]
[1734914234540,0.02984121,3263.1,3262.1,0.1882]
[1734914234674,0.02984121,3263.1,3262.2,0.55]
[1734914235024,0.02984121,3263.1,3262.3,0.1882]
[1734914235178,0.02984121,3263.1,3262.5,0.1882]
[1734914235364,3.52428489,3264.0,3262.7,0.1882]
[1734914235567,0.02982215,3263.0,3262.8,0.7382]
[1734914235763,3.044932,3264.0,3262.8,0.7382]
[1734914235968,1.226729,3263.9,3262.9,8.92238]
[1734914236163,0.0299936,3263.9,3263.1,0.1882]
[1734914236470,3.044932,3264.0,3263.3,0.1882]
[1734914236694,0.0304371,3263.9,3263.5,0.1882]
[1734914236909,0.00765,3264.7,3263.8,9.47238]
[1734914237092,0.00765,3264.7,3263.9,0.1882]
[1734914237581,0.00765,3264.7,3264.3,0.1882]
[1734914240021,0.00765,3264.7,3263.1,8.92238]
[1734914240222,0.00765,3264.7,3263.2,0.7382]
[1734914240521,3.07075,3264.7,3263.2,0.7382]
[1734914240683,3.0,3264.6,3263.2,0.7382]
[1734914240885,3.0,3264.6,3263.2,1.05646204]
[1734914241083,3.0,3264.6,3263.2,0.80646204]
[1734914241290,3.0,3264.6,3263.3,0.1882]
[1734914241518,0.00765,3264.7,3263.5,0.25]
[1734914241723,0.00765,3264.7,3263.8,8.92238]
[1734914241891,0.00765,3264.7,3264.1,8.92238]
[1734914242222,0.168957,3265.6,3264.3,0.1882]
[1734914242596,0.02991752,3265.5,3264.1,8.92238]
[1734914242786,0.02991752,3265.5,3263.9,1.167238]
[1734914242787,0.02991752,3265.5,3264.6,8.92238]
[1734914242987,0.168957,3265.6,3265.0,0.1882]
[1734914243221,1.2328106,3266.7,3265.4,0.55]
[1734914243426,1.2328106,3266.7,3265.6,0.1882]
[1734914243724,0.02811174,3266.6,3265.9,0.55]
[1734914244049,0.02811174,3266.6,3266.1,9.47238]
[1734914244332,1.2328106,3267.2,3266.1,8.92238]
[1734914244694,0.02800502,3267.1,3266.1,8.92238]
[1734914244906,3.0,3267.0,3266.1,8.92238]
[1734914245110,0.02792102,3266.9,3266.1,8.92238]
[1734914247723,0.02792102,3266.9,3266.1,8.91472]
[1734914248436,0.02792102,3266.9,3266.0,0.1882]
[1734914249328,3.0,3267.2,3266.0,0.1882]
[1734914249527,0.02790201,3266.8,3266.0,0.1882]
[1734914249827,3.0,3267.2,3266.0,0.1882]
[1734914250001,3.02785401,3266.7,3266.0,0.1882]
[1734914250208,1.225414,3267.4,3266.0,0.1882]
[1734914250443,0.02790386,3266.6,3266.1,8.91472]
[1734914250738,0.02790386,3266.6,3266.0,0.1882]
[1734914250739,1.5403,3267.9,3266.2,1.098492]
[1734914251103,0.02928646,3267.8,3266.4,8.91472]
[1734914251304,4.01823422,3268.1,3266.5,0.1882]
[1734914251502,1.225368,3267.5,3266.5,0.1882]
[1734914251726,0.02933478,3267.4,3266.7,0.1882]
[1734914251936,0.02933478,3267.4,3266.7,9.10292]
[1734914252116,3.0,3268.0,3266.9,0.1882]
[1734914252117,1.225208,3268.0,3266.9,0.1882]
[1734914252318,4.4609276,3268.9,3266.9,0.1882]
[1734914252319,0.168957,3268.9,3267.2,0.1882]
[1734914252506,0.168957,3268.9,3267.5,0.55]
[1734914252707,0.0280651,3268.8,3267.5,0.55]
[1734914253106,0.0280651,3268.8,3267.4,0.1882]
[1734914253424,0.0280651,3268.8,3267.8,0.1882]
[1734914253618,0.0280651,3268.8,3267.9,0.55]
[1734914253806,0.0280651,3268.8,3268.1,0.55]
[1734914254004,0.168957,3268.9,3268.4,0.55]
[1734914254545,0.168957,3268.9,3268.6,0.55]
[1734914254912,0.55,3269.8,3268.7,0.1882]
[1734914255210,0.02792782,3269.7,3268.7,0.1882]
[1734914255548,4.01823422,3270.1,3268.7,0.1882]
[1734914255706,0.02852091,3269.6,3268.7,0.1882]
[1734914255908,7.07672422,3269.6,3268.7,0.1882]
[1734914256107,3.02850192,3269.5,3268.7,0.1882]
[1734914256848,3.02850192,3269.5,3267.1,3.25]
[1734914256849,3.0,3269.0,3267.6,0.1882]
[1734914257340,0.02873271,3268.9,3268.0,0.25]
[1734914257545,0.02873271,3268.9,3268.1,0.1882]
[1734914257710,3.0,3269.5,3268.1,0.1882]
[1734914258044,3.0,3269.2,3268.1,0.1882]
[1734914258247,0.02743972,3269.4,3268.1,0.1882]
[1734914258446,0.47849666,3269.8,3268.1,0.1882]
[1734914258447,7.04566945,3269.1,3268.1,0.1882]
[1734914258645,3.0,3268.9,3268.1,0.1882]
[1734914258940,0.02737825,3268.8,3268.1,0.1882]
[1734914259146,0.02737825,3268.8,3268.2,0.55]
[1734914259344,3.0,3269.5,3268.3,0.1882]
[1734914259644,0.02731333,3268.7,3268.3,0.1882]
[1734914259941,3.0,3269.5,3268.3,0.1882]
[1734914260248,0.02732057,3268.6,3268.4,0.55]
[1734914260546,3.0,3269.5,3268.4,0.55]
[1734914260712,0.02730158,3268.5,3268.4,0.55]
[1734914260907,3.0,3269.5,3268.4,0.55]
[1734914261149,0.02747252,3269.4,3268.4,0.55]
[1734914261520,0.02747252,3269.4,3268.3,0.1882]
[1734914261835,3.0,3269.0,3268.3,0.1882]
[1734914262033,0.02747252,3269.4,3268.3,0.1882]
[1734914262227,0.02739724,3268.9,3268.3,0.1882]
[1734914262421,4.5984,3269.5,3268.3,0.1882]
[1734914262759,0.02737825,3268.8,3268.3,0.1882]
[1734914262949,3.0,3268.8,3267.2,0.1882]
[1734914263145,0.02735925,3268.7,3267.4,0.1882]
[1734914263328,3.0,3269.0,3267.4,0.1882]
[1734914263519,0.02735338,3268.6,3267.4,0.1882]
[1734914263747,3.0,3269.0,3267.4,0.1882]
[1734914263943,0.02728189,3268.5,3267.4,0.1882]
[1734914264360,3.0,3269.0,3267.4,0.1882]
[1734914264527,3.5542233,3269.7,3267.4,0.1882]
[1734914264528,0.02732195,3268.4,3267.5,0.25]
[1734914264732,3.0,3269.5,3267.7,8.91472]
[1734914264931,3.0,3269.5,3267.9,0.1882]
[1734914265175,0.02746596,3269.4,3267.9,0.1882]
[1734914265465,0.02746596,3269.4,3268.2,0.55]
[1734914265662,0.02746596,3269.4,3268.5,0.1882]
[1734914266026,3.6082,3269.9,3268.5,0.1882]
[1734914266239,0.02744697,3269.3,3268.5,0.1882]
[1734914266440,3.6082,3269.9,3268.5,0.1882]
[1734914266641,0.02742798,3269.2,3268.5,0.1882]
[1734914266844,0.55,3269.9,3268.5,0.1882]
[1734914267241,3.0,3269.5,3268.5,0.1882]
[1734914267644,3.0,3269.3,3268.5,0.1882]
[1734914267841,3.0,3269.2,3268.5,0.1882]
[1734914268041,3.02775267,3269.2,3268.5,0.1882]
[1734914268238,0.02775267,3269.2,3268.5,0.1882]
[1734914268663,3.0,3269.3,3268.5,0.1882]
[1734914268832,0.02773368,3269.1,3268.5,0.1882]
[1734914269030,0.02775267,3269.2,3268.5,0.1882]
[1734914269230,0.02771469,3269.0,3268.5,0.1882]